lending/lending_fUSD_20250501
["ID","MTS","AMOUNT","RATE_DAILY","PERIOD"]
[359575322,1746137447973,-506.81346082,0.00035616,11]
[359575323,1746137447982,-450.0,0.00035616,11]
[359575324,1746137447991,-880.87,0.00035616,120]
[359575325,1746137448000,-450.0,0.00035616,11]
[359575326,1746137448010,-832.52,0.00035616,11]
[359575327,1746137448019,-450.0,0.00035616,11]
[359575328,1746137448028,-450.0,0.00035616,11]
[359575329,1746137448038,-590.1142189,0.00035616,11]
[359575330,1746137448047,-450.0,0.00035616,11]
[359575331,1746137448058,-450.0,0.00035616,11]
[359575332,1746137448069,-2166.8,0.00035616,11]
[359575333,1746137448078,-1460.54,0.00035616,11]
[359575334,1746137448087,-450.0,0.00035616,11]
[359575335,1746137448096,-450.0,0.00035616,11]
[359575336,1746137448106,-1326.45,0.00035616,11]
[359575337,1746137448115,-450.0,0.00035616,11]
[359575338,1746137448124,-450.0,0.00035616,11]
[359575339,1746137448134,-450.0,0.00035616,11]
[359575340,1746137448143,-832.15,0.00035616,11]
[359575341,1746137448152,-1111.23,0.00035616,11]
[359575342,1746137448162,-450.0,0.00035616,11]
[359575343,1746137448171,-450.0,0.00035616,11]
[359575344,1746137448180,-522.33417101,0.00035616,11]
[359575345,1746137448190,-728.279374,0.00035616,7]
[359575346,1746137448199,-728.279374,0.00035616,7]
[359575347,1746137448208,-193.10149593,0.00035616,11]
[359575348,1746137448220,-367.82641031,0.00035616,11]
[359575349,1746137448230,-450.0,0.00035616,11]
[359575350,1746137448240,-1191.23,0.00035616,11]
[359575351,1746137448253,-450.0,0.00035616,11]
[359575352,1746137448263,-151.0,0.00035616,7]
[359575353,1746137448273,-151.0,0.00035616,7]
[359575354,1746137448283,-151.0,0.00035616,7]
[359575355,1746137448293,-450.0,0.00035616,11]
[359575356,1746137448304,-1132.85,0.00035616,11]
[359575357,1746137448319,-728.279374,0.00035616,7]
[359575358,1746137448329,-728.279374,0.00035616,7]
[359575359,1746137448338,-1919.28,0.00035616,11]
[359575360,1746137448348,-447.38186049,0.00035616,11]
[359575361,1746137448358,-1011.23,0.00035616,11]
[359575362,1746137448368,-151.0,0.00035616,7]
[359575363,1746137448378,-450.0,0.00035616,11]
[359575364,1746137448387,-151.0,0.00035616,7]
[359575365,1746137448398,-586.79,0.00035616,11]
[359575366,1746137448407,-151.0,0.00035616,7]
[359575367,1746137448417,-1439.64,0.00035616,11]
[359575368,1746137448427,-715.63,0.00035616,11]
[359575369,1746137448436,-450.0,0.00035616,11]
[359575370,1746137448446,-450.0,0.00035616,7]
[359575371,1746137448455,-755.14,0.00035616,11]
[359575372,1746137448465,-151.0,0.00035616,7]
[359575373,1746137448475,-450.0,0.00035616,11]
[359575374,1746137448486,-151.0,0.00035616,7]
[359575375,1746137448496,-1410.47,0.00035616,11]
[359575376,1746137448507,-151.0,0.00035616,7]
[359575377,1746137448517,-450.0,0.00035616,11]
[359575378,1746137448527,-151.0,0.00035616,7]
[359575379,1746137448537,-520.27958928,0.00035616,11]
[359575380,1746137448546,-450.0,0.00035616,11]
[359575381,1746137448556,-504.6,0.00035616,11]
[359575382,1746137448566,-530.56,0.00035616,11]
[359575383,1746137448576,-253.53492,0.00035616,7]
[359575384,1746137448587,-594.82,0.00035616,11]
[359575385,1746137448597,-450.0,0.00035616,11]
[359575386,1746137448606,-450.0,0.00035616,11]
[359575387,1746137448616,-253.53492,0.00035616,7]
[359575388,1746137448627,-4628.51,0.00035616,11]
[359575389,1746137448636,-450.0,0.00035616,11]
[359575390,1746137448646,-450.0,0.00035616,11]
[359575391,1746137448657,-450.0,0.00035616,11]
[359575392,1746137448667,-2499.3,0.00035616,11]
[359575393,1746137448677,-450.0,0.00035616,11]
[359575394,1746137448687,-450.0,0.00035616,11]
[359575395,1746137448696,-450.0,0.00035616,11]
[359575396,1746137448706,-253.53492,0.00035616,7]
[359575397,1746137448716,-253.53492,0.00035616,7]
[359575398,1746137448725,-450.0,0.00035616,11]
[359575399,1746137448735,-380.225017,0.00035616,7]
[359575400,1746137448745,-450.0,0.00035616,11]
[359575401,1746137448761,-380.225017,0.00035616,7]
[359575402,1746137448775,-9021.74,0.00035616,11]
[359575403,1746137448785,-450.0,0.00035616,11]
[359575404,1746137448795,-450.0,0.00035616,11]
[359575405,1746137448806,-450.0,0.00035616,11]
[359575406,1746137448815,-450.0,0.00035616,11]
[359575407,1746137448825,-450.0,0.00035616,11]
[359575408,1746137448835,-223.10854448,0.00035616,11]
[359575409,1746137448845,-450.0,0.00035616,11]
[359575410,1746137448855,-586.64,0.00035616,11]
[359575411,1746137448865,-664.97,0.00035616,11]
[359575412,1746137448874,-380.225017,0.00035616,7]
[359575413,1746137448884,-380.225017,0.00035616,7]
[359575414,1746137448894,-450.0,0.00035616,11]
[359575415,1746137448904,-470.0,0.00035616,11]
[359575416,1746137448914,-450.0,0.00035616,11]
[359575417,1746137448924,-450.0,0.00035616,11]
[359575418,1746137448934,-450.0,0.00035616,11]
[359575419,1746137448943,-450.0,0.00035616,11]
[359575420,1746137448953,-450.0,0.00035616,11]
[359575421,1746137448963,-524.58,0.00035616,11]
[359575422,1746137448973,-450.0,0.00035616,11]
[359575423,1746137448982,-1195.42,0.00035616,11]
[359575424,1746137448992,-450.0,0.00035616,11]
[359575425,1746137449002,-281.740845,0.00035616,7]
[359575426,1746137449012,-1166.55,0.00035616,11]
[359575427,1746137449021,-450.0,0.00035616,11]
[359575428,1746137449031,-1575.46,0.00035616,11]
[359575429,1746137449040,-10082.18,0.00035616,11]
[359575430,1746137449050,-832.45,0.00035616,11]
[359575431,1746137449060,-450.0,0.00035616,11]
[359575432,1746137449070,-1072.9,0.00035616,11]
[359575433,1746137449079,-450.0,0.00035616,11]
[359575434,1746137449089,-300.0,0.00035616,11]
[359575435,1746137449100,-824.89,0.00035616,11]
[359575436,1746137449110,-450.0,0.00035616,11]
[359575437,1746137449120,-151.0,0.00035616,7]
[359575438,1746137449130,-450.0,0.00035616,11]
[359575439,1746137449140,-450.0,0.00035616,11]
[359575440,1746137449150,-450.0,0.00035616,11]
[359575441,1746137449160,-672.09,0.00035616,11]
[359575442,1746137449170,-450.0,0.00035616,11]
[359575443,1746137449179,-1058.66,0.00035616,11]
[359575444,1746137449189,-9533.34,0.00035616,11]
[359575445,1746137449198,-450.0,0.00035616,11]
[359575446,1746137449208,-450.0,0.00035616,11]
[359575447,1746137449218,-450.0,0.00035616,11]
[359575448,1746137449227,-450.0,0.00035616,11]
[359575449,1746137449237,-456.26,0.00035616,11]
[359575450,1746137449247,-2040.31,0.00035616,11]
[359575451,1746137449261,-810.37,0.00035616,11]
[359575452,1746137449271,-925.94,0.00035616,11]
[359575453,1746137449282,-450.0,0.00035616,11]
[359575454,1746137449293,-504.47,0.00035616,11]
[359575455,1746137449303,-847.07,0.00035616,11]
[359575456,1746137449317,-450.0,0.00035616,11]
[359575457,1746137449328,-450.0,0.00035616,11]
[359575458,1746137449338,-1032.24,0.00035616,11]
[359575459,1746137449348,-450.0,0.00035616,11]
[359575460,1746137449359,-519.19758941,0.00035616,11]
[359575461,1746137449369,-249.81271707,0.00035616,11]
[359575462,1746137449379,-470.0,0.00035616,11]
[359575463,1746137449390,-595.4015744,0.00035616,11]
[359575464,1746137449401,-1245.35,0.00035616,11]
[359575465,1746137449411,-437.39136868,0.00035616,11]
[359575466,1746137449421,-697.22,0.00035616,11]
[359575467,1746137449431,-3589.66,0.00035616,11]
[359575468,1746137449441,-450.0,0.00035616,11]
[359575469,1746137449451,-1526.42,0.00035616,11]
[359575470,1746137449461,-915.07,0.00035616,11]
[359575471,1746137449472,-477.49,0.00035616,11]
[359575472,1746137449483,-470.0,0.00035616,11]
[359575473,1746137449493,-450.0,0.00035616,11]
[359575474,1746137449504,-450.0,0.00035616,11]
[359575475,1746137449514,-450.0,0.00035616,11]
[359575476,1746137449524,-450.0,0.00035616,11]
[359575477,1746137449534,-450.0,0.00035616,11]
[359575478,1746137449544,-1022.36,0.00035616,11]
[359575479,1746137449555,-2749.02,0.00035616,11]
[359575480,1746137449564,-500.0,0.00035616,11]
[359575481,1746137449575,-618.18332005,0.00035616,11]
[359575482,1746137449585,-450.0,0.00035616,11]
[359575483,1746137449595,-450.0,0.00035616,11]
[359575484,1746137449606,-1082.52,0.00035616,11]
[359575485,1746137449616,-921.09,0.00035616,11]
[359575486,1746137449627,-1983.46,0.00035616,11]
[359575487,1746137449637,-450.0,0.00035616,11]
[359575488,1746137449647,-297.25466182,0.00035616,11]
[359575489,1746137449657,-3121.38,0.00035616,11]
[359575490,1746137449668,-888.0,0.00035616,14]
[359575491,1746137449678,-459.98,0.00035616,11]
[359575492,1746137449688,-531.49499428,0.00035616,11]
[359575493,1746137449698,-524.97,0.00035616,11]
[359575494,1746137449709,-450.0,0.00035616,11]
[359575495,1746137449719,-722.56,0.00035616,11]
[359575496,1746137449729,-450.0,0.00035616,11]
[359575497,1746137449739,-450.0,0.00035616,11]
[359575498,1746137449750,-450.0,0.00035616,11]
[359575499,1746137449760,-1410.65,0.00035616,11]
[359575500,1746137449771,-450.0,0.00035616,11]
[359575501,1746137449782,-450.0,0.00035616,11]
[359575502,1746137449792,-450.0,0.00035616,11]
[359575503,1746137449803,-450.0,0.00035616,11]
[359575504,1746137449813,-9585.54,0.00035616,11]
[359575505,1746137449823,-151.0,0.00035616,7]
[359575506,1746137449834,-151.0,0.00035616,7]
[359575507,1746137449844,-676.92,0.00035616,11]
[359575508,1746137449856,-450.0,0.00035616,11]
[359575509,1746137449866,-2318.28,0.00035616,11]
[359575510,1746137449876,-4378.04,0.00035616,11]
[359575511,1746137449886,-3012.42,0.00035616,11]
[359575512,1746137449897,-450.0,0.00035616,11]
[359575513,1746137449908,-885.02,0.00035616,11]
[359575514,1746137449919,-696.87,0.00035616,11]
[359575515,1746137449929,-974.13,0.00035616,11]
[359575516,1746137449939,-613.1,0.00035616,11]
[359575517,1746137449949,-450.0,0.00035616,11]
[359575518,1746137449959,-500.0,0.00035616,11]
[359575519,1746137449969,-450.0,0.00035616,11]
[359575520,1746137449979,-847.91,0.00035616,11]
[359575521,1746137449989,-1017.95,0.00035616,11]
[359575522,1746137449998,-133710.78,0.00035616,11]
[359575523,1746137450008,-450.0,0.00035616,11]
[359575524,1746137450019,-151.0,0.00035616,7]
[359575525,1746137450029,-151.0,0.00035616,7]
[359575526,1746137450039,-450.0,0.00035616,11]
[359575527,1746137450049,-151.0,0.00035616,7]
[359575528,1746137450058,-151.0,0.00035616,7]
[359575529,1746137450068,-470.0,0.00035616,11]
[359575530,1746137450078,-450.0,0.00035616,11]
[359575531,1746137450087,-840.55,0.00035616,11]
[359575532,1746137450097,-423.78600852,0.00035616,11]
[359575533,1746137450107,-892.78,0.00035616,11]
[359575534,1746137450116,-717.99,0.00035616,11]
[359575535,1746137450126,-644.23,0.00035616,11]
[359575536,1746137450136,-450.0,0.00035616,11]
[359575537,1746137450146,-583.23,0.00035616,11]
[359575538,1746137450156,-1339.22,0.00035616,11]
[359575539,1746137450166,-450.0,0.00035616,11]
[359575540,1746137450176,-450.0,0.00035616,11]
[359575541,1746137450186,-450.0,0.00035616,11]
[359575542,1746137450195,-450.0,0.00035616,11]
[359575543,1746137450205,-151.0,0.00035616,7]
[359575544,1746137450214,-259.499752,0.00035616,7]
[359575545,1746137450224,-450.0,0.00035616,11]
[359575546,1746137450233,-1215.87,0.00035616,11]
[359575547,1746137450243,-450.0,0.00035616,11]
[359575548,1746137450254,-523.49,0.00035616,11]
[359575549,1746137450265,-1072.81,0.00035616,11]
[359575550,1746137450277,-450.0,0.00035616,11]
[359575551,1746137450287,-450.0,0.00035616,11]
[359575552,1746137450297,-450.0,0.00035616,11]
[359575553,1746137450307,-1000.0,0.00035616,11]
[359575554,1746137450323,-907.07,0.00035616,11]
[359575555,1746137450333,-624.88,0.00035616,11]
[359575556,1746137450343,-9732.88,0.00035616,11]
[359575557,1746137450353,-450.0,0.00035616,11]
[359575558,1746137450363,-3069.31,0.00035616,11]
[359575559,1746137450373,-450.0,0.00035616,11]
[359575560,1746137450383,-450.0,0.00035616,11]
[359575561,1746137450393,-450.0,0.00035616,11]
[359575562,1746137450403,-487.41,0.00035616,11]
[359575563,1746137450412,-1961.5,0.00035616,11]
[359575564,1746137450422,-471.05,0.00035616,11]
[359575565,1746137450432,-521.46,0.00035616,11]
[359575566,1746137450442,-592.41999,0.00035616,7]
[359575567,1746137450452,-592.41999,0.00035616,7]
[359575568,1746137450461,-450.0,0.00035616,11]
[359575569,1746137450471,-498.33,0.00035616,11]
[359575570,1746137450481,-899.57,0.00035616,11]
[359575571,1746137450491,-5058.13,0.00035616,11]
[359575572,1746137450501,-450.0,0.00035616,11]
[359575573,1746137450511,-934.55,0.00035616,11]
[359575574,1746137450780,-592.41999,0.00035616,7]
[359575575,1746137450790,-592.41999,0.00035616,7]
[359575576,1746137450800,-460.53,0.00035616,11]
[359575577,1746137450809,-450.0,0.00035616,11]
[359575578,1746137450819,-151.0,0.00035616,7]
[359575579,1746137450829,-151.0,0.00035616,7]
[359575580,1746137450839,-151.0,0.00035616,7]
[359575581,1746137450849,-1328.85,0.00035616,11]
[359575582,1746137450859,-151.0,0.00035616,7]
[359575583,1746137450869,-169.372927,0.00035616,7]
[359575584,1746137450879,-169.372927,0.00035616,7]
[359575585,1746137450888,-450.0,0.00035616,11]
[359575586,1746137450898,-450.0,0.00035616,11]
[359575587,1746137450907,-820.6,0.00035616,11]
[359575588,1746137450917,-470.0,0.00035616,11]
[359575589,1746137450927,-196.2744216,0.00035616,11]
[359575590,1746137450936,-601.68,0.00035616,11]
[359575591,1746137450946,-450.0,0.00035616,11]
[359575592,1746137450956,-859.71,0.00035616,11]
[359575593,1746137450966,-450.0,0.00035616,11]
[359575594,1746137450976,-2507.79,0.00035616,11]
[359575595,1746137450985,-400.06413632,0.00035616,11]
[359575596,1746137450995,-1356.12,0.00035616,11]
[359575597,1746137451005,-450.0,0.00035616,11]
[359575598,1746137451015,-450.0,0.00035616,11]
[359575599,1746137451024,-450.0,0.00035616,11]
[359575600,1746137451034,-450.0,0.00035616,11]
[359575601,1746137451043,-482.59,0.00035616,11]
[359575602,1746137451053,-1193.59,0.00035616,11]
[359575603,1746137451063,-450.0,0.00035616,11]
[359575604,1746137451074,-1103.54,0.00035616,11]
[359575605,1746137451084,-450.0,0.00035616,11]
[359575606,1746137451093,-1811.96,0.00035616,11]
[359575607,1746137451103,-450.0,0.00035616,11]
[359575608,1746137451114,-26036.84,0.00035616,11]
[359575609,1746137451124,-450.0,0.00035616,11]
[359575610,1746137451134,-450.0,0.00035616,11]
[359575611,1746137451146,-735.7,0.00035616,11]
[359575612,1746137451155,-450.0,0.00035616,11]
[359575613,1746137451165,-1091.6,0.00035616,11]
[359575614,1746137451175,-450.0,0.00035616,11]
[359575615,1746137451184,-1713.49,0.00035616,8]
[359575616,1746137451193,-602.11,0.00035616,11]
[359575617,1746137451203,-450.0,0.00035616,11]
[359575618,1746137451212,-450.0,0.00035616,11]
[359575619,1746137451221,-450.0,0.00035616,11]
[359575620,1746137451230,-539.9,0.00035616,11]
[359575621,1746137451239,-450.0,0.00035616,11]
[359575622,1746137451249,-450.0,0.00035616,11]
[359575623,1746137451258,-450.0,0.00035616,11]
[359575624,1746137451268,-450.0,0.00035616,11]
[359575625,1746137451277,-735.81,0.00035616,11]
[359575626,1746137451286,-151.0,0.00035616,7]
[359575627,1746137451295,-909.63,0.00035616,11]
[359575628,1746137451304,-450.0,0.00035616,11]
[359575629,1746137451316,-151.0,0.00035616,7]
[359575630,1746137451326,-450.0,0.00035616,11]
[359575631,1746137451335,-450.0,0.00035616,11]
[359575632,1746137451345,-450.0,0.00035616,11]
[359575633,1746137451355,-667.64,0.00035616,11]
[359575634,1746137451365,-500.64,0.00035616,11]
[359575635,1746137451375,-450.0,0.00035616,11]
[359575636,1746137451385,-985.57,0.00035616,11]
[359575637,1746137451396,-918.4,0.00035616,11]
[359575638,1746137451406,-450.0,0.00035616,11]
[359575639,1746137451416,-450.0,0.00035616,11]
[359575640,1746137451425,-563.92,0.00035616,11]
[359575641,1746137451435,-450.0,0.00035616,11]
[359575642,1746137451444,-308.06556597,0.00035616,11]
[359575643,1746137451454,-470.0,0.00035616,11]
[359575644,1746137451464,-450.0,0.00035616,11]
[359575645,1746137451473,-911.62,0.00035616,11]
[359575646,1746137451483,-450.0,0.00035616,11]
[359575647,1746137451492,-917.86,0.00035616,11]
[359575648,1746137451502,-450.0,0.00035616,11]
[359575649,1746137451512,-771.26,0.00035616,11]
[359575650,1746137451521,-869.99,0.00035616,11]
[359575651,1746137451530,-151.0,0.00035616,7]
[359575652,1746137451540,-450.0,0.00035616,11]
[359575653,1746137451549,-913.39,0.00035616,11]
[359575654,1746137451559,-151.0,0.00035616,7]
[359575655,1746137451568,-632.41,0.00035616,11]
[359575656,1746137451578,-509.28013165,0.00035616,11]
[359575657,1746137451587,-500.0,0.00035616,11]
[359575658,1746137451597,-499.93,0.00035616,11]
[359575659,1746137451606,-819.94,0.00035616,11]
[359575660,1746137451616,-450.0,0.00035616,11]
[359575661,1746137451625,-450.0,0.00035616,11]
[359575662,1746137451635,-500.0,0.00035616,11]
[359575663,1746137451644,-500.0,0.00035616,11]
[359575664,1746137451653,-500.0,0.00035616,11]
[359575665,1746137451663,-450.0,0.00035616,11]
[359575666,1746137451673,-500.0,0.00035616,11]
[359575667,1746137451682,-500.0,0.00035616,11]
[359575668,1746137451691,-151.0,0.00035616,7]
[359575669,1746137451702,-500.0,0.00035616,11]
[359575670,1746137451712,-500.0,0.00035616,11]
[359575671,1746137451721,-151.0,0.00035616,7]
[359575672,1746137451731,-500.0,0.00035616,11]
[359575673,1746137451741,-500.0,0.00035616,11]
[359575674,1746137451752,-500.0,0.00035616,11]
[359575675,1746137451761,-500.0,0.00035616,11]
[359575676,1746137451771,-500.0,0.00035616,11]
[359575677,1746137451781,-500.0,0.00035616,11]
[359575678,1746137451790,-500.0,0.00035616,11]
[359575679,1746137451800,-450.0,0.00035616,11]
[359575680,1746137451809,-450.0,0.00035616,11]
[359575681,1746137451819,-500.0,0.00035616,11]
[359575682,1746137451828,-500.0,0.00035616,11]
[359575683,1746137451838,-500.0,0.00035616,11]
[359575684,1746137451848,-528.53,0.00035616,11]
[359575685,1746137451857,-450.0,0.00035616,11]
[359575686,1746137451866,-1094.62,0.00035616,11]
[359575687,1746137451877,-506.53,0.00035616,11]
[359575688,1746137451887,-842.29,0.00035616,11]
[359575689,1746137451896,-450.0,0.00035616,11]
[359575690,1746137451906,-450.0,0.00035616,11]
[359575691,1746137451916,-1728.63,0.00035616,11]
[359575692,1746137451925,-1175.81,0.00035616,11]
[359575693,1746137451935,-1018.92,0.00035616,11]
[359575694,1746137451945,-450.0,0.00035616,11]
[359575695,1746137451954,-356.23183123,0.00035616,11]
[359575696,1746137451964,-450.0,0.00035616,11]
[359575697,1746137451973,-450.0,0.00035616,11]
[359575698,1746137451984,-541.67,0.00035616,11]
[359575699,1746137451994,-450.0,0.00035616,11]
[359575700,1746137452004,-698.22,0.00035616,11]
[359575701,1746137452013,-470.0,0.00035616,11]
[359575702,1746137452023,-754.88,0.00035616,11]
[359575703,1746137452033,-934.17,0.00035616,11]
[359575704,1746137452042,-450.0,0.00035616,11]
[359575705,1746137452052,-561.55,0.00035616,11]
[359575706,1746137452061,-450.0,0.00035616,11]
[359575707,1746137452071,-450.0,0.00035616,11]
[359575708,1746137452081,-1063.07,0.00035616,11]
[359575709,1746137452091,-1394.71,0.00035616,11]
[359575710,1746137452100,-450.0,0.00035616,11]
[359575711,1746137452110,-450.0,0.00035616,11]
[359575712,1746137452119,-450.0,0.00035616,11]
[359575713,1746137452129,-634.39,0.00035616,11]
[359575714,1746137452138,-595.14794625,0.00035616,11]
[359575715,1746137452147,-499.1,0.00035616,11]
[359575716,1746137452157,-190.98700723,0.00035616,11]
[359575717,1746137452166,-539.78,0.00035616,11]
[359575718,1746137452175,-450.0,0.00035616,11]
[359575719,1746137452184,-151.0,0.00035616,7]
[359575720,1746137452194,-556.66,0.00035616,11]
[359575721,1746137452203,-151.0,0.00035616,7]
[359575722,1746137452212,-1762.62,0.00035616,11]
[359575723,1746137452221,-450.0,0.00035616,11]
[359575724,1746137452231,-362.90604878,0.00035616,11]
[359575725,1746137452240,-840.52,0.00035616,11]
[359575726,1746137452251,-4646.57,0.00035616,11]
[359575727,1746137452261,-562.56120641,0.00035616,11]
[359575728,1746137452271,-450.0,0.00035616,11]
[359575729,1746137452280,-450.0,0.00035616,11]
[359575730,1746137452290,-470.0,0.00035616,11]
[359575731,1746137452300,-506.63,0.00035616,11]
[359575732,1746137452310,-901.41,0.00035616,11]
[359575733,1746137452324,-1284.0,0.00035616,11]
[359575734,1746137452334,-450.0,0.00035616,11]
[359575735,1746137452344,-911.57,0.00035616,11]
[359575736,1746137452353,-1195.77,0.00035616,11]
[359575737,1746137452364,-450.0,0.00035616,11]
[359575738,1746137452374,-3828.21,0.00035616,11]
[359575739,1746137452384,-787.8,0.00035616,11]
[359575740,1746137452394,-314.10185125,0.00035616,11]
[359575741,1746137452404,-450.0,0.00035616,11]
[359575742,1746137452414,-450.0,0.00035616,11]
[359575743,1746137452423,-1985.19,0.00035616,11]
[359575744,1746137452433,-5579.35,0.00035616,11]
[359575745,1746137452443,-450.0,0.00035616,11]
[359575746,1746137452452,-450.0,0.00035616,11]
[359575747,1746137452462,-546.39,0.00035616,11]
[359575748,1746137452471,-563.9,0.00035616,11]
[359575749,1746137452481,-513.8,0.00035616,11]
[359575750,1746137452490,-450.0,0.00035616,11]
[359575751,1746137452500,-450.0,0.00035616,11]
[359575752,1746137452509,-780.51,0.00035616,11]
[359575753,1746137452519,-692.91,0.00035616,11]
[359575754,1746137452528,-504.21734642,0.00035616,11]
[359575755,1746137452538,-450.0,0.00035616,11]
[359575756,1746137452547,-883.92,0.00035616,11]
[359575757,1746137452557,-450.0,0.00035616,11]
[359575758,1746137452566,-151.0,0.00035616,7]
[359575759,1746137452576,-151.0,0.00035616,7]
[359575760,1746137452585,-1374.59,0.00035616,11]
[359575761,1746137452594,-450.0,0.00035616,11]
[359575762,1746137452604,-450.0,0.00035616,11]
[359575763,1746137452613,-450.0,0.00035616,11]
[359575764,1746137452622,-1190.64,0.00035616,11]
[359575765,1746137452633,-450.0,0.00035616,11]
[359575766,1746137452642,-184.355505,0.00035616,7]
[359575767,1746137452651,-547.09244354,0.00035616,11]
[359575768,1746137452661,-470.0,0.00035616,11]
[359575769,1746137452671,-450.0,0.00035616,11]
[359575770,1746137452680,-184.355505,0.00035616,7]
[359575771,1746137452690,-504.86,0.00035616,11]
[359575772,1746137452699,-560.05,0.00035616,11]
[359575773,1746137452709,-450.0,0.00035616,11]
[359575774,1746137452718,-470.0,0.00035616,11]
[359575775,1746137452728,-726.16,0.00035616,11]
[359575776,1746137452738,-184.355505,0.00035616,7]
[359575777,1746137452748,-184.355505,0.00035616,7]
[359575778,1746137452757,-1288.94,0.00035616,11]
[359575779,1746137452767,-450.0,0.00035616,11]
[359575780,1746137452777,-699.05,0.00035616,11]
[359575781,1746137452786,-918.28,0.00035616,11]
[359575782,1746137452796,-503.56129683,0.00035616,11]
[359575783,1746137452805,-500.0,0.00035616,11]
[359575784,1746137452814,-450.0,0.00035616,11]
[359575785,1746137452824,-450.0,0.00035616,11]
[359575786,1746137452833,-4227.14,0.00035616,11]
[359575787,1746137452842,-450.0,0.00035616,11]
[359575788,1746137452852,-876.41,0.00035616,11]
[359575789,1746137452861,-450.0,0.00035616,11]
[359575790,1746137452871,-492.77,0.00035616,11]
[359575791,1746137452880,-1796.83,0.00035616,11]
[359575792,1746137452890,-450.0,0.00035616,11]
[359575793,1746137452900,-13693.55,0.00035616,11]
[359575794,1746137452909,-558.89,0.00035616,11]
[359575795,1746137452919,-475.14,0.00035616,11]
[359575796,1746137452928,-1840.92,0.00035616,11]
[359575797,1746137452938,-450.0,0.00035616,11]
[359575798,1746137452947,-450.0,0.00035616,11]
[359575799,1746137452956,-1096.09,0.00035616,11]
[359575800,1746137452966,-727.5,0.00035616,11]
[359575801,1746137452975,-763.85,0.00035616,11]
[359575802,1746137452985,-450.0,0.00035616,11]
[359575803,1746137452994,-1459.52,0.00035616,11]
[359575804,1746137453004,-1250.93,0.00035616,11]
[359575805,1746137453014,-151.0,0.00035616,7]
[359575806,1746137453023,-12090.2,0.00035616,2]
[359575807,1746137453032,-450.0,0.00035616,3]
[359575808,1746137453042,-450.0,0.00035616,11]
[359575809,1746137453116,-470.0,0.00035616,11]
[359575810,1746137453125,-450.0,0.00035616,11]
[359575811,1746137453135,-450.0,0.00035616,11]
[359575812,1746137453144,-450.0,0.00035616,11]
[359575813,1746137453153,-450.0,0.00035616,11]
[359575814,1746137453162,-450.0,0.00035616,11]
[359575815,1746137453171,-470.0,0.00035616,11]
[359575816,1746137453181,-450.0,0.00035616,11]
[359575817,1746137453190,-470.0,0.00035616,11]
[359575818,1746137453199,-1445.69,0.00035616,11]
[359575819,1746137453209,-515.21436929,0.00035616,11]
[359575820,1746137453218,-450.0,0.00035616,11]
[359575821,1746137453228,-450.0,0.00035616,11]